[Event "Late-Titled-Tuesday-Blitz-August-29-2023"]
[Site "Chess.com"]
[Date "2023.08.29"]
[Round "7"]
[White "Sjakkerntobi"]
[Black "Nf3c5"]
[Result "1/2-1/2"]
[WhiteElo "2469"]
[BlackElo "2602"]
[TimeControl "180+1"]
[EndTime "15:17:39 PDT"]
[Termination "Game drawn by 50-move rule"]

1. e4 {[%clk 0:03:00.9]} 1... c5 {[%clk 0:02:58.2]} 2. Nf3 {[%clk 0:03:01.1]}
2... Nc6 {[%clk 0:02:58.2]} 3. d4 {[%clk 0:03:01.5]} 3... cxd4 {[%clk
0:02:57.9]} 4. Nxd4 {[%clk 0:03:02.4]} 4... e5 {[%clk 0:02:57.2]} 5. Nb5 {[%clk
0:03:02]} 5... d6 {[%clk 0:02:57.7]} 6. N1c3 {[%clk 0:02:59.5]} 6... a6 {[%clk
0:02:56.3]} 7. Na3 {[%clk 0:02:59.8]} 7... Be6 {[%clk 0:02:55.6]} 8. Nc4 {[%clk
0:02:59]} 8... Rb8 {[%clk 0:02:50.7]} 9. Ne3 {[%clk 0:02:57.9]} 9... Nf6 {[%clk
0:02:15.3]} 10. Bc4 {[%clk 0:02:50.7]} 10... Be7 {[%clk 0:02:08.7]} 11. Ned5
{[%clk 0:02:44.6]} 11... O-O {[%clk 0:02:01.7]} 12. O-O {[%clk 0:02:41.8]} 12...
Nd4 {[%clk 0:01:56.8]} 13. Be3 {[%clk 0:02:38.8]} 13... b5 {[%clk 0:01:54.8]}
14. Bb3 {[%clk 0:02:38.6]} 14... b4 {[%clk 0:01:32.8]} 15. Nxf6+ {[%clk
0:02:34.5]} 15... Bxf6 {[%clk 0:01:31.2]} 16. Nd5 {[%clk 0:02:34.9]} 16... Bxd5
{[%clk 0:01:23.5]} 17. Bxd5 {[%clk 0:02:34.9]} 17... Rc8 {[%clk 0:01:21.2]} 18.
Rc1 {[%clk 0:02:33.1]} 18... a5 {[%clk 0:01:19.5]} 19. Qd3 {[%clk 0:02:29.3]}
19... Bg5 {[%clk 0:01:15.4]} 20. c3 {[%clk 0:02:27.3]} 20... bxc3 {[%clk
0:01:13]} 21. bxc3 {[%clk 0:02:28.2]} 21... Bxe3 {[%clk 0:01:06.6]} 22. Qxe3
{[%clk 0:02:28.7]} 22... Ne6 {[%clk 0:01:06.9]} 23. Rfd1 {[%clk 0:02:22.8]}
23... Nf4 {[%clk 0:00:51.7]} 24. g3 {[%clk 0:02:18.9]} 24... Nxd5 {[%clk
0:00:30.3]} 25. Rxd5 {[%clk 0:02:19.8]} 25... Rc6 {[%clk 0:00:30]} 26. Qa7
{[%clk 0:02:14.2]} 26... Qg5 {[%clk 0:00:20.5]} 27. Rc2 {[%clk 0:02:04.1]} 27...
Qg4 {[%clk 0:00:20.3]} 28. Qxa5 {[%clk 0:01:50.9]} 28... Qxe4 {[%clk 0:00:18.9]}
29. Rcd2 {[%clk 0:01:51.2]} 29... Qe1+ {[%clk 0:00:16.8]} 30. Kg2 {[%clk
0:01:51.7]} 30... Qe4+ {[%clk 0:00:17.4]} 31. f3 {[%clk 0:01:52.3]} 31... Qc4
{[%clk 0:00:17.4]} 32. Qb4 {[%clk 0:01:42]} 32... Qxc3 {[%clk 0:00:16.9]} 33.
Qxc3 {[%clk 0:01:42]} 33... Rxc3 {[%clk 0:00:17.8]} 34. Rxd6 {[%clk 0:01:42.5]}
34... g6 {[%clk 0:00:17.2]} 35. R6d5 {[%clk 0:01:34.7]} 35... Re8 {[%clk
0:00:16.1]} 36. Re2 {[%clk 0:01:34.3]} 36... Ra3 {[%clk 0:00:16.4]} 37. Rdxe5
{[%clk 0:01:31.3]} 37... Rxe5 {[%clk 0:00:16.9]} 38. Rxe5 {[%clk 0:01:32.2]}
38... Rxa2+ {[%clk 0:00:17.6]} 39. Kh3 {[%clk 0:01:33]} 39... Kg7 {[%clk
0:00:18.2]} 40. g4 {[%clk 0:01:33.3]} 40... Rf2 {[%clk 0:00:18.1]} 41. Kg3
{[%clk 0:01:33.4]} 41... Ra2 {[%clk 0:00:19]} 42. h4 {[%clk 0:01:33.6]} 42... h6
{[%clk 0:00:19.4]} 43. Rb5 {[%clk 0:01:32.8]} 43... Ra4 {[%clk 0:00:19.5]} 44.
Rb1 {[%clk 0:01:30.1]} 44... Rc4 {[%clk 0:00:19.8]} 45. Re1 {[%clk 0:01:30.4]}
45... Ra4 {[%clk 0:00:19.9]} 46. Re5 {[%clk 0:01:29.7]} 46... Kf6 {[%clk
0:00:20.1]} 47. Rb5 {[%clk 0:01:29.9]} 47... Rc4 {[%clk 0:00:20.1]} 48. Kg2
{[%clk 0:01:29.1]} 48... Kg7 {[%clk 0:00:20.6]} 49. Kf2 {[%clk 0:01:29.3]} 49...
Ra4 {[%clk 0:00:20.6]} 50. Ke3 {[%clk 0:01:28.9]} 50... Ra3+ {[%clk 0:00:20.8]}
51. Kf4 {[%clk 0:01:29.1]} 51... Ra4+ {[%clk 0:00:21.7]} 52. Kg3 {[%clk
0:01:29.4]} 52... Ra3 {[%clk 0:00:22]} 53. Re5 {[%clk 0:01:29.6]} 53... Ra4
{[%clk 0:00:22.3]} 54. Kf2 {[%clk 0:01:29]} 54... Rb4 {[%clk 0:00:22.4]} 55. Ke3
{[%clk 0:01:29.1]} 55... Ra4 {[%clk 0:00:23]} 56. Rd5 {[%clk 0:01:29.2]} 56...
Kf6 {[%clk 0:00:23.2]} 57. Rd4 {[%clk 0:01:29.2]} 57... Ra3+ {[%clk 0:00:22.7]}
58. Kf4 {[%clk 0:01:29.2]} 58... g5+ {[%clk 0:00:22.2]} 59. hxg5+ {[%clk
0:01:27.9]} 59... hxg5+ {[%clk 0:00:23.1]} 60. Kg3 {[%clk 0:01:28.7]} 60... Kg6
{[%clk 0:00:23.5]} 61. Rd6+ {[%clk 0:01:28.4]} 61... f6 {[%clk 0:00:23.9]} 62.
Rd5 {[%clk 0:01:28.9]} 62... Ra4 {[%clk 0:00:24.1]} 63. Rf5 {[%clk 0:01:29.4]}
63... Ra1 {[%clk 0:00:24.1]} 64. Kf2 {[%clk 0:01:29.3]} 64... Ra2+ {[%clk
0:00:24.3]} 65. Ke3 {[%clk 0:01:29.7]} 65... Ra3+ {[%clk 0:00:25.2]} 66. Kd4
{[%clk 0:01:29.9]} 66... Ra4+ {[%clk 0:00:25.6]} 67. Kc3 {[%clk 0:01:29.8]}
67... Ra3+ {[%clk 0:00:23.2]} 68. Kb4 {[%clk 0:01:29.9]} 68... Re3 {[%clk
0:00:23.3]} 69. Kc5 {[%clk 0:01:28.6]} 69... Kf7 {[%clk 0:00:23.4]} 70. Kd4
{[%clk 0:01:28.4]} 70... Re1 {[%clk 0:00:23.5]} 71. Kd3 {[%clk 0:01:27]} 71...
Ke6 {[%clk 0:00:23.6]} 72. Kd2 {[%clk 0:01:26.8]} 72... Ra1 {[%clk 0:00:22.3]}
73. Rb5 {[%clk 0:01:25.5]} 73... Ra2+ {[%clk 0:00:21.1]} 74. Ke3 {[%clk
0:01:25.4]} 74... Rg2 {[%clk 0:00:19.1]} 75. Rb6+ {[%clk 0:01:25]} 75... Kf7
{[%clk 0:00:19.3]} 76. Rb8 {[%clk 0:01:24.9]} 76... Ra2 {[%clk 0:00:18.4]} 77.
Rb7+ {[%clk 0:01:24.9]} 77... Ke6 {[%clk 0:00:18.6]} 78. Rb5 {[%clk 0:01:24.8]}
78... Ra4 {[%clk 0:00:17.9]} 79. Kf2 {[%clk 0:01:25]} 79... Rc4 {[%clk
0:00:17.9]} 80. Kg3 {[%clk 0:01:25.1]} 80... Ra4 {[%clk 0:00:18.5]} 81. Kg2
{[%clk 0:01:23.4]} 81... Rc4 {[%clk 0:00:18.3]} 82. Ra5 {[%clk 0:01:24.1]} 82...
Rb4 {[%clk 0:00:18.4]} 83. Kf1 {[%clk 0:01:24.6]} 83... Kf7 {[%clk 0:00:18.4]}
84. Kf2 {[%clk 0:01:25.2]} 84... Ke6 {[%clk 0:00:18.9]} 85. Ke3 {[%clk
0:01:25.5]} 85... Rc4 {[%clk 0:00:18.9]} 86. Ra3 {[%clk 0:01:24.9]} 86... Rb4
{[%clk 0:00:19.1]} 87. Rd3 {[%clk 0:01:25.3]} 87... Ke5 {[%clk 0:00:18.9]} 88.
Ra3 {[%clk 0:01:25.7]} 88... Rc4 {[%clk 0:00:18.9]} 89. Ra5+ {[%clk 0:01:26]}
89... Ke6 {[%clk 0:00:19.5]} 90. Kd3 {[%clk 0:01:26.6]} 90... Rb4 {[%clk
0:00:19.8]} 91. Rc5 {[%clk 0:01:25.5]} 91... Rb3+ {[%clk 0:00:19]} 92. Ke4
{[%clk 0:01:26]} 92... Rb4+ {[%clk 0:00:19.3]} 93. Ke3 {[%clk 0:01:26.6]} 93...
Ra4 {[%clk 0:00:19.9]} 94. Rb5 {[%clk 0:01:25.7]} 94... Ra3+ {[%clk 0:00:19.6]}
95. Kf2 {[%clk 0:01:25.5]} 95... Ra4 {[%clk 0:00:20.5]} 96. Rb3 {[%clk
0:01:25.1]} 96... Rc4 {[%clk 0:00:20.6]} 97. Re3+ {[%clk 0:01:25.2]} 97... Kf7
{[%clk 0:00:20.3]} 98. Ke2 {[%clk 0:01:24.1]} 98... Ra4 {[%clk 0:00:20.8]} 99.
Rd3 {[%clk 0:01:23.6]} 99... Ra2+ {[%clk 0:00:20.9]} 100. Ke3 {[%clk 0:01:23.8]}
100... Ra4 {[%clk 0:00:21.8]} 101. Rd4 {[%clk 0:01:23.4]} 101... Ra3+ {[%clk
0:00:22.3]} 102. Ke4 {[%clk 0:01:23.7]} 102... Rb3 {[%clk 0:00:22.9]} 103. Ra4
{[%clk 0:01:23.3]} 103... Ke6 {[%clk 0:00:23]} 104. Ra6+ {[%clk 0:01:23.6]}
104... Kf7 {[%clk 0:00:23.3]} 105. Rd6 {[%clk 0:01:23.6]} 105... Kg6 {[%clk
0:00:23.5]} 106. Rd3 {[%clk 0:01:23.1]} 106... Rb4+ {[%clk 0:00:23.6]} 107. Ke3
{[%clk 0:01:23.7]} 107... Ra4 {[%clk 0:00:23.2]} 108. Kf2 {[%clk 0:01:24.3]}
108... Ra2+ {[%clk 0:00:23.1]} 109. Kg3 {[%clk 0:01:24.8]} 109... Ra4 {[%clk
0:00:24]} 110. Rd6 {[%clk 0:01:25]} 110... Rb4 {[%clk 0:00:24.2]} 111. Rc6
{[%clk 0:01:25.3]} 111... Ra4 {[%clk 0:00:24.5]} 1/2-1/2

[Event "Late-Titled-Tuesday-Blitz-August-29-2023"]
[Site "Chess.com"]
[Date "2023.08.29"]
[Round "7"]
[White "psychokiller48"]
[Black "Langusto"]
[Result "1-0"]
[WhiteElo "2677"]
[BlackElo "2485"]
[TimeControl "180+1"]
[EndTime "15:17:46 PDT"]
[Termination "psychokiller48 won on time"]

1. d4 {[%clk 0:02:59.6]} 1... d5 {[%clk 0:02:59.8]} 2. c4 {[%clk 0:02:59.1]}
2... dxc4 {[%clk 0:03:00.7]} 3. e3 {[%clk 0:02:58.3]} 3... Nf6 {[%clk
0:03:00.2]} 4. Bxc4 {[%clk 0:02:55.5]} 4... a6 {[%clk 0:03:00.5]} 5. Nc3 {[%clk
0:02:53.4]} 5... e6 {[%clk 0:02:59]} 6. a4 {[%clk 0:02:45.2]} 6... c5 {[%clk
0:02:57.1]} 7. Nf3 {[%clk 0:02:45.4]} 7... Nc6 {[%clk 0:02:57.6]} 8. O-O {[%clk
0:02:45]} 8... cxd4 {[%clk 0:02:58.3]} 9. exd4 {[%clk 0:02:44.7]} 9... Be7
{[%clk 0:02:58.9]} 10. Re1 {[%clk 0:02:44.8]} 10... O-O {[%clk 0:02:59.2]} 11.
Bg5 {[%clk 0:02:27.7]} 11... Nb4 {[%clk 0:02:56]} 12. Ne5 {[%clk 0:02:24.7]}
12... Bd7 {[%clk 0:02:53]} 13. Qe2 {[%clk 0:02:11.2]} 13... Rc8 {[%clk
0:02:24.9]} 14. Rad1 {[%clk 0:02:08.5]} 14... Be8 {[%clk 0:02:07]} 15. Bxf6
{[%clk 0:01:44.7]} 15... Bxf6 {[%clk 0:02:07.9]} 16. d5 {[%clk 0:01:44.7]} 16...
exd5 {[%clk 0:01:57.3]} 17. Nxd5 {[%clk 0:01:41.3]} 17... Nxd5 {[%clk
0:01:35.9]} 18. Bxd5 {[%clk 0:01:35.7]} 18... Qb6 {[%clk 0:01:31.9]} 19. Ng4
{[%clk 0:01:03.2]} 19... Bxa4 {[%clk 0:01:25.5]} 20. Ra1 {[%clk 0:00:50]} 20...
Bb5 {[%clk 0:01:15.3]} 21. Qf3 {[%clk 0:00:49.3]} 21... Bxb2 {[%clk 0:01:11]}
22. Rab1 {[%clk 0:00:49.2]} 22... Bd4 {[%clk 0:01:03.9]} 23. Bxb7 {[%clk
0:00:46.5]} 23... Rc2 {[%clk 0:00:57.5]} 24. Be4 {[%clk 0:00:44.6]} 24... Rc3
{[%clk 0:00:54.1]} 25. Qf4 {[%clk 0:00:28.3]} 25... g6 {[%clk 0:00:43]} 26. Rbd1
{[%clk 0:00:25.6]} 26... Bg7 {[%clk 0:00:40.7]} 27. Bd5 {[%clk 0:00:23.5]} 27...
h5 {[%clk 0:00:35.1]} 28. Nh6+ {[%clk 0:00:20.5]} 28... Bxh6 {[%clk 0:00:29.3]}
29. Qxh6 {[%clk 0:00:21.4]} 29... Rc2 {[%clk 0:00:28.4]} 30. Re3 {[%clk
0:00:20.8]} 30... Re8 {[%clk 0:00:20.4]} 31. h4 {[%clk 0:00:11.1]} 31... Rxe3
{[%clk 0:00:18.5]} 32. fxe3 {[%clk 0:00:12]} 32... Re2 {[%clk 0:00:18.1]} 33.
Rd4 {[%clk 0:00:11.4]} 33... Re1+ {[%clk 0:00:11.9]} 34. Kh2 {[%clk 0:00:10.9]}
34... Qd6+ {[%clk 0:00:11.7]} 35. Qf4 {[%clk 0:00:07]} 35... Qxf4+ {[%clk
0:00:10.8]} 36. Rxf4 {[%clk 0:00:07.9]} 36... Be8 {[%clk 0:00:09.8]} 37. Re4
{[%clk 0:00:07.8]} 37... Kf8 {[%clk 0:00:09.6]} 38. Bb7 {[%clk 0:00:07.6]} 38...
a5 {[%clk 0:00:09.7]} 39. Re5 {[%clk 0:00:07.4]} 39... a4 {[%clk 0:00:09.4]} 40.
Ra5 {[%clk 0:00:06.3]} 40... Rxe3 {[%clk 0:00:09.7]} 41. Ra8 {[%clk 0:00:07]}
41... Ke7 {[%clk 0:00:08.1]} 42. Ra7 {[%clk 0:00:07.2]} 42... Kf6 {[%clk
0:00:07.5]} 43. Kg1 {[%clk 0:00:05.9]} 43... Re7 {[%clk 0:00:06.1]} 44. Ra6+
{[%clk 0:00:05.3]} 44... Re6 {[%clk 0:00:06.7]} 45. Ra8 {[%clk 0:00:05.1]} 45...
Kg7 {[%clk 0:00:06.6]} 46. Kf2 {[%clk 0:00:03.5]} 46... Re5 {[%clk 0:00:06.4]}
47. Bf3 {[%clk 0:00:03.4]} 47... Bd7 {[%clk 0:00:04.5]} 48. Ra7 {[%clk
0:00:03.7]} 48... Be8 {[%clk 0:00:03.3]} 49. Be2 {[%clk 0:00:03.4]} 49... Kf6
{[%clk 0:00:01.7]} 50. g3 {[%clk 0:00:03.8]} 50... Re6 {[%clk 0:00:01.9]} 51.
Bc4 {[%clk 0:00:04.1]} 51... Re7 {[%clk 0:00:02.6]} 52. Ra6+ {[%clk 0:00:04.3]}
52... Kg7 {[%clk 0:00:03.1]} 53. Bd3 {[%clk 0:00:03.8]} 53... Bd7 {[%clk
0:00:03.4]} 54. Ra7 {[%clk 0:00:03.6]} 54... Kf6 {[%clk 0:00:03.9]} 55. Ra6+
{[%clk 0:00:03.7]} 55... Ke5 {[%clk 0:00:04]} 56. Ke3 {[%clk 0:00:03.5]} 56...
Kd5+ {[%clk 0:00:03.2]} 57. Kf2 {[%clk 0:00:04]} 57... Kc5 {[%clk 0:00:03.7]}
58. Ra7 {[%clk 0:00:04.2]} 58... Kb6 {[%clk 0:00:03.9]} 59. Ra8 {[%clk
0:00:04.8]} 59... Bc6 {[%clk 0:00:02.9]} 60. Rb8+ {[%clk 0:00:04.7]} 60... Kc5
{[%clk 0:00:03.5]} 61. Rd8 {[%clk 0:00:03.3]} 61... Ra7 {[%clk 0:00:03.3]} 62.
Bb1 {[%clk 0:00:02.8]} 62... a3 {[%clk 0:00:03.7]} 63. Ba2 {[%clk 0:00:03.6]}
63... Rc7 {[%clk 0:00:01.5]} 64. Ke3 {[%clk 0:00:03]} 64... Kb4 {[%clk
0:00:02.1]} 65. Rd3 {[%clk 0:00:02.8]} 65... Kc5 {[%clk 0:00:02.4]} 66. Rxa3
{[%clk 0:00:02.8]} 1-0

[Event "Late-Titled-Tuesday-Blitz-August-29-2023"]
[Site "Chess.com"]
[Date "2023.08.29"]
[Round "7"]
[White "TheMagician"]
[Black "Good_Knight_Kiss"]
[Result "0-1"]
[WhiteElo "2144"]
[BlackElo "2341"]
[TimeControl "180+1"]
[EndTime "15:17:46 PDT"]
[Termination "Good_Knight_Kiss won by resignation"]

1. e4 {[%clk 0:03:00.9]} 1... c5 {[%clk 0:02:59.6]} 2. Nf3 {[%clk 0:03:00.3]}
2... d6 {[%clk 0:02:57.8]} 3. d4 {[%clk 0:02:59]} 3... cxd4 {[%clk 0:02:57.7]}
4. Nxd4 {[%clk 0:02:59.9]} 4... Nf6 {[%clk 0:02:57.8]} 5. Nc3 {[%clk 0:02:59.9]}
5... a6 {[%clk 0:02:57.1]} 6. Bg5 {[%clk 0:02:58.9]} 6... e6 {[%clk 0:02:56.9]}
7. f4 {[%clk 0:02:58.6]} 7... Be7 {[%clk 0:02:56.6]} 8. Qf3 {[%clk 0:02:58.6]}
8... h6 {[%clk 0:02:56.9]} 9. Bh4 {[%clk 0:02:58.3]} 9... Qc7 {[%clk 0:02:56.3]}
10. O-O-O {[%clk 0:02:56.9]} 10... Nbd7 {[%clk 0:02:56.1]} 11. Kb1 {[%clk
0:02:52.7]} 11... g5 {[%clk 0:02:52.8]} 12. fxg5 {[%clk 0:02:42.6]} 12... Ne5
{[%clk 0:02:52.3]} 13. Qe2 {[%clk 0:02:25.4]} 13... Nfg4 {[%clk 0:02:49.1]} 14.
Nf3 {[%clk 0:02:22.7]} 14... hxg5 {[%clk 0:02:44.2]} 15. Bxg5 {[%clk 0:02:17.6]}
15... Bxg5 {[%clk 0:02:22]} 16. Nxg5 {[%clk 0:02:17.5]} 16... Qc5 {[%clk
0:02:21.7]} 17. Rd2 {[%clk 0:01:51.7]} 17... Bd7 {[%clk 0:02:04.4]} 18. Nf3
{[%clk 0:01:43.9]} 18... O-O-O {[%clk 0:01:58.6]} 19. Nxe5 {[%clk 0:01:43.9]}
19... Nxe5 {[%clk 0:01:58.2]} 20. h3 {[%clk 0:01:42.6]} 20... Bc6 {[%clk
0:01:28.6]} 21. Qf2 {[%clk 0:01:34.8]} 21... Qxf2 {[%clk 0:01:13.7]} 22. Rxf2
{[%clk 0:01:33.9]} 22... Rdg8 {[%clk 0:01:13.7]} 23. Rg1 {[%clk 0:01:30.9]}
23... Rxh3 {[%clk 0:01:10.9]} 24. Be2 {[%clk 0:01:21.4]} 24... Rhg3 {[%clk
0:01:02.9]} 25. a3 {[%clk 0:01:15.4]} 25... Kd7 {[%clk 0:00:49.9]} 26. Kc1
{[%clk 0:01:15.5]} 26... Ke7 {[%clk 0:00:50.3]} 27. Kd2 {[%clk 0:01:15.6]} 27...
b5 {[%clk 0:00:47.9]} 28. b3 {[%clk 0:01:09.4]} 28... Rc8 {[%clk 0:00:40.9]} 29.
a4 {[%clk 0:01:02.9]} 29... b4 {[%clk 0:00:30.2]} 30. Na2 {[%clk 0:01:02.4]}
30... a5 {[%clk 0:00:25.1]} 31. Bf3 {[%clk 0:00:54.3]} 31... Rcg8 {[%clk
0:00:20.1]} 32. Rgf1 {[%clk 0:00:53.8]} 32... R8g7 {[%clk 0:00:16.4]} 33. Nc1
{[%clk 0:00:53.7]} 33... Ng4 {[%clk 0:00:14.9]} 34. Re2 {[%clk 0:00:53]} 34...
Nh2 {[%clk 0:00:13.5]} 35. Rff2 {[%clk 0:00:50.8]} 35... Ng4 {[%clk 0:00:12.7]}
36. Rf1 {[%clk 0:00:50.7]} 36... Ne5 {[%clk 0:00:12.4]} 37. Nd3 {[%clk
0:00:49.7]} 37... R7g5 {[%clk 0:00:10.1]} 38. Nxe5 {[%clk 0:00:49.2]} 38... Rxe5
{[%clk 0:00:10.4]} 39. Ref2 {[%clk 0:00:49.7]} 39... Rg7 {[%clk 0:00:08.9]} 40.
Kd3 {[%clk 0:00:49.6]} 40... d5 {[%clk 0:00:05.6]} 41. exd5 {[%clk 0:00:48.9]}
41... Bxd5 {[%clk 0:00:06.5]} 42. Bxd5 {[%clk 0:00:47.9]} 42... Rxd5+ {[%clk
0:00:06.9]} 43. Ke2 {[%clk 0:00:45.8]} 43... f5 {[%clk 0:00:06.6]} 44. Rf4
{[%clk 0:00:44.7]} 44... Kf6 {[%clk 0:00:05.4]} 45. R1f2 {[%clk 0:00:45.6]}
45... Rc7 {[%clk 0:00:05.3]} 46. Rc4 {[%clk 0:00:45.2]} 46... Rxc4 {[%clk
0:00:05.1]} 47. bxc4 {[%clk 0:00:45.5]} 47... Rd4 {[%clk 0:00:05.4]} 48. c3
{[%clk 0:00:44.3]} 48... Rxc4 {[%clk 0:00:05.3]} 49. cxb4 {[%clk 0:00:44]} 49...
Rxb4 {[%clk 0:00:04.9]} 50. Kd3 {[%clk 0:00:43.9]} 50... Rxa4 {[%clk 0:00:04.5]}
51. Rb2 {[%clk 0:00:43.5]} 51... Rg4 {[%clk 0:00:04.2]} 52. Ra2 {[%clk
0:00:42.8]} 52... a4 {[%clk 0:00:04.6]} 53. Ke3 {[%clk 0:00:43.2]} 53... Ke5
{[%clk 0:00:04.9]} 54. Kf3 {[%clk 0:00:43.8]} 54... Kd5 {[%clk 0:00:04.6]} 55.
g3 {[%clk 0:00:44.3]} 55... Kc5 {[%clk 0:00:04.6]} 56. Re2 {[%clk 0:00:44.2]}
56... Kd5 {[%clk 0:00:04.5]} 57. Rd2+ {[%clk 0:00:43.8]} 57... Rd4 {[%clk
0:00:04.8]} 58. Rb2 {[%clk 0:00:41.3]} 58... e5 {[%clk 0:00:04]} 59. Rb5+ {[%clk
0:00:41.5]} 59... Ke6 {[%clk 0:00:04]} 60. Rb6+ {[%clk 0:00:41.5]} 60... Rd6
{[%clk 0:00:03.9]} 61. Rb5 {[%clk 0:00:39]} 61... Rd3+ {[%clk 0:00:04]} 62. Kf2
{[%clk 0:00:38.1]} 62... a3 {[%clk 0:00:04.2]} 63. Ra5 {[%clk 0:00:37.6]} 63...
e4 {[%clk 0:00:03.6]} 64. Kg2 {[%clk 0:00:31.6]} 64... Kf6 {[%clk 0:00:03.2]}
65. Kh2 {[%clk 0:00:26.8]} 65... Kg5 {[%clk 0:00:03.3]} 66. Kh3 {[%clk
0:00:25.9]} 66... Rc3 {[%clk 0:00:03.5]} 67. Rb5 {[%clk 0:00:20.6]} 67... a2
{[%clk 0:00:03.4]} 68. Ra5 {[%clk 0:00:20.9]} 68... Rc2 {[%clk 0:00:03.8]} 69.
Rxa2 {[%clk 0:00:15.5]} 69... Rxa2 {[%clk 0:00:03.2]} 70. g4 {[%clk 0:00:15.7]}
70... fxg4+ {[%clk 0:00:03.4]} 71. Kg3 {[%clk 0:00:16.4]} 71... Ra3+ {[%clk
0:00:03.8]} 72. Kg2 {[%clk 0:00:16.2]} 72... Kf4 {[%clk 0:00:04.3]} 0-1

[Event "Late-Titled-Tuesday-Blitz-August-29-2023"]
[Site "Chess.com"]
[Date "2023.08.29"]
[Round "7"]
[White "js20000"]
[Black "vi_pranav"]
[Result "0-1"]
[WhiteElo "2643"]
[BlackElo "2944"]
[TimeControl "180+1"]
[EndTime "15:17:49 PDT"]
[Termination "vi_pranav won by resignation"]

1. e4 {[%clk 0:03:00.9]} 1... c6 {[%clk 0:02:59.3]} 2. Nf3 {[%clk 0:03:00.3]}
2... d5 {[%clk 0:02:59.7]} 3. d3 {[%clk 0:03:01.2]} 3... Bg4 {[%clk 0:02:58.8]}
4. h3 {[%clk 0:02:58.8]} 4... Bxf3 {[%clk 0:02:58.9]} 5. Qxf3 {[%clk 0:02:59]}
5... e6 {[%clk 0:02:59.8]} 6. g3 {[%clk 0:02:55.8]} 6... Nd7 {[%clk 0:02:59.1]}
7. Bg2 {[%clk 0:02:56.1]} 7... Ngf6 {[%clk 0:02:56.9]} 8. O-O {[%clk 0:02:56.3]}
8... Bd6 {[%clk 0:02:55]} 9. Qe2 {[%clk 0:02:56.3]} 9... O-O {[%clk 0:02:54.3]}
10. Nd2 {[%clk 0:02:56.3]} 10... Re8 {[%clk 0:02:53.2]} 11. Nf3 {[%clk
0:02:48.1]} 11... e5 {[%clk 0:02:51.9]} 12. Nh4 {[%clk 0:02:47.2]} 12... a5
{[%clk 0:02:50.1]} 13. Nf5 {[%clk 0:02:46.3]} 13... Bf8 {[%clk 0:02:49.3]} 14.
Bg5 {[%clk 0:02:45.8]} 14... h6 {[%clk 0:02:45]} 15. Bd2 {[%clk 0:02:44.1]}
15... a4 {[%clk 0:02:44.8]} 16. a3 {[%clk 0:02:43.7]} 16... Qb6 {[%clk
0:02:42.1]} 17. Rab1 {[%clk 0:02:43.1]} 17... Qa6 {[%clk 0:02:40.2]} 18. Qf3
{[%clk 0:02:32.6]} 18... Rad8 {[%clk 0:02:35.2]} 19. Rfe1 {[%clk 0:02:28.1]}
19... Re6 {[%clk 0:02:24.2]} 20. h4 {[%clk 0:02:26.3]} 20... Nc5 {[%clk
0:02:17.5]} 21. Rbd1 {[%clk 0:02:08.5]} 21... dxe4 {[%clk 0:02:03]} 22. dxe4
{[%clk 0:02:09.4]} 22... Qc4 {[%clk 0:02:02.6]} 23. Bh3 {[%clk 0:02:00.1]} 23...
Qxc2 {[%clk 0:01:35.6]} 24. Ne3 {[%clk 0:01:38.3]} 24... Qxe4 {[%clk 0:01:30.4]}
25. Qxe4 {[%clk 0:01:36]} 25... Nfxe4 {[%clk 0:01:31.3]} 26. Bxe6 {[%clk
0:01:34.7]} 26... Nxe6 {[%clk 0:01:32.2]} 27. Ba5 {[%clk 0:01:30.6]} 27... Ra8
{[%clk 0:01:21.1]} 28. Bb6 {[%clk 0:01:23.9]} 28... f6 {[%clk 0:01:17]} 29. Rd7
{[%clk 0:01:21.4]} 29... N4c5 {[%clk 0:01:16.1]} 30. Rd2 {[%clk 0:01:14.7]}
30... Nd4 {[%clk 0:01:14.8]} 31. Kg2 {[%clk 0:01:11.2]} 31... Ra6 {[%clk
0:01:11.4]} 32. Bxc5 {[%clk 0:01:05.9]} 32... Bxc5 {[%clk 0:01:12.3]} 33. Rc1
{[%clk 0:01:05.6]} 33... Bf8 {[%clk 0:01:09.2]} 34. Rcd1 {[%clk 0:01:04.9]}
34... Kf7 {[%clk 0:01:01.4]} 35. Nc2 {[%clk 0:01:03.9]} 35... c5 {[%clk
0:01:01.7]} 36. Ne3 {[%clk 0:01:01.7]} 36... b5 {[%clk 0:00:55.3]} 37. Nd5
{[%clk 0:00:57.5]} 37... Ra7 {[%clk 0:00:52.7]} 38. Rd3 {[%clk 0:00:50.6]} 38...
Rb7 {[%clk 0:00:51]} 39. Ra1 {[%clk 0:00:49.2]} 39... Ke6 {[%clk 0:00:43.4]} 40.
Nc3 {[%clk 0:00:48.8]} 40... c4 {[%clk 0:00:37.3]} 41. Rdd1 {[%clk 0:00:46.1]}
41... f5 {[%clk 0:00:34.8]} 42. Rac1 {[%clk 0:00:40.9]} 42... Bc5 {[%clk
0:00:33.5]} 43. Re1 {[%clk 0:00:39.8]} 43... e4 {[%clk 0:00:31.7]} 44. Rcd1
{[%clk 0:00:38.8]} 44... g5 {[%clk 0:00:30.8]} 45. hxg5 {[%clk 0:00:36.3]} 45...
hxg5 {[%clk 0:00:31.7]} 46. Nxe4 {[%clk 0:00:31.1]} 46... fxe4 {[%clk
0:00:31.6]} 47. Rxe4+ {[%clk 0:00:32]} 47... Kd5 {[%clk 0:00:31.9]} 48. Rg4
{[%clk 0:00:32.5]} 48... Rg7 {[%clk 0:00:29.8]} 49. f4 {[%clk 0:00:32.4]} 49...
Kc6 {[%clk 0:00:26.7]} 50. Rxg5 {[%clk 0:00:32.5]} 50... Re7 {[%clk 0:00:25.1]}
51. Re5 {[%clk 0:00:30.8]} 51... Rxe5 {[%clk 0:00:24]} 52. fxe5 {[%clk
0:00:31.7]} 52... Kd5 {[%clk 0:00:24.9]} 53. Re1 {[%clk 0:00:31]} 53... Ne6
{[%clk 0:00:25]} 54. Kf3 {[%clk 0:00:30.6]} 54... Bd4 {[%clk 0:00:25.9]} 55. Re2
{[%clk 0:00:30.4]} 55... Bxe5 {[%clk 0:00:26.3]} 56. Kg4 {[%clk 0:00:30.9]}
56... Bd4 {[%clk 0:00:15.7]} 57. Kf5 {[%clk 0:00:26.8]} 57... Nc5 {[%clk
0:00:14.6]} 58. Re8 {[%clk 0:00:16.2]} 58... Bxb2 {[%clk 0:00:14]} 59. Rd8+
{[%clk 0:00:15.1]} 59... Kc6 {[%clk 0:00:14.3]} 60. Rc8+ {[%clk 0:00:16]} 60...
Kb6 {[%clk 0:00:14.6]} 61. Rb8+ {[%clk 0:00:14.8]} 61... Ka6 {[%clk 0:00:14.9]}
62. Rc8 {[%clk 0:00:15]} 62... Nd3 {[%clk 0:00:13.3]} 63. g4 {[%clk 0:00:15]}
63... Bxa3 {[%clk 0:00:11.7]} 64. g5 {[%clk 0:00:14.6]} 64... Bb2 {[%clk
0:00:12.2]} 65. g6 {[%clk 0:00:14.8]} 65... Ka5 {[%clk 0:00:12.2]} 66. Ke4
{[%clk 0:00:12.5]} 66... Kb4 {[%clk 0:00:12]} 67. Ke3 {[%clk 0:00:12.5]} 67...
a3 {[%clk 0:00:12.3]} 68. Ra8 {[%clk 0:00:12.5]} 68... Kb3 {[%clk 0:00:12.4]}
69. Kd2 {[%clk 0:00:12.4]} 69... b4 {[%clk 0:00:12.6]} 70. Ra7 {[%clk
0:00:12.1]} 70... a2 {[%clk 0:00:12.7]} 71. Ke3 {[%clk 0:00:10.1]} 71... Bc3
{[%clk 0:00:13.6]} 72. Ke4 {[%clk 0:00:08.7]} 72... a1=Q {[%clk 0:00:13.9]} 73.
Rxa1 {[%clk 0:00:08.6]} 73... Bxa1 {[%clk 0:00:14.8]} 0-1